bitfinex-derivatives/quotes_SOLF0:USTF0_20250311
["timestamp","ask_amount","ask_price","bid_price","bid_amount"]
[1741675302894,8.126,123.1,123.06,8.1283]
[1741675303098,8.53620177,123.11,123.05,8.53620177]
[1741675303498,8.126,123.1,123.06,8.1281]
[1741675303699,0.05165537,123.09,123.07,0.06024248]
[1741675304299,0.05165537,123.09,123.07,8.18734248]
[1741675304501,0.05165537,123.09,123.07,16.72354425]
[1741675305306,0.05165537,123.09,123.08,8.127]
[1741675305500,44.81175656,123.12,123.08,8.127]
[1741675305699,44.81175656,123.12,123.09,8.53620177]
[1741675306105,8.1245,123.12,123.09,8.53620177]
[1741675306302,8.1245,123.12,123.07,33.00024248]
[1741675306503,32.94,123.15,123.08,8.127]
[1741675306699,0.06216377,123.11,123.08,8.127]
[1741675306898,0.06216377,123.11,123.1,0.06202765]
[1741675312805,0.06216377,123.11,123.1,32.98202765]
[1741675313207,8.1242,123.13,123.1,32.98202765]
[1741675313805,8.1235,123.14,123.1,41.10772765]
[1741675314008,268.3,123.16,123.1,32.98202765]
[1741675314404,0.05793952,123.14,123.1,32.98202765]
[1741675314707,8.1241,123.13,123.1,32.98202765]
[1741675315409,0.05793952,123.14,123.1,32.98202765]
[1741675315605,8.18133952,123.14,123.1,41.10762765]
[1741675316504,0.05793952,123.14,123.1,46.28537892]
[1741675316904,13.30335127,123.2,123.11,2.092]
[1741675317310,44.18670585,123.21,123.11,2.092]
[1741675317611,44.18670585,123.21,123.12,4.3923]
[1741675317803,8.1218,123.16,123.13,32.9]
[1741675318000,8.1218,123.16,123.15,0.0611181]
[1741675318711,8.1213,123.17,123.15,0.0611181]
[1741675319011,0.05300404,123.18,123.15,0.0611181]
[1741675319414,8.1211,123.17,123.15,0.0611181]
[1741675321912,0.05300404,123.18,123.15,0.0611181]
[1741675322115,8.17370404,123.18,123.15,8.1835181]
[1741675322315,268.08,123.23,123.16,32.9]
[1741675322514,268.08,123.23,123.16,48.28825127]
[1741675322712,8.1181,123.22,123.18,8.12]
[1741675323215,44.81175656,123.25,123.2,8.119]
[1741675323216,8.1166,123.24,123.2,8.119]
[1741675323609,0.05825083,123.23,123.21,0.05579644]
[1741675324410,0.05825083,123.23,123.22,32.88]
[1741675324613,44.81175656,123.25,123.22,32.88]
[1741675324813,6.3539,123.29,123.22,32.88]
[1741675325119,8.1171,123.23,123.22,32.88]
[1741675325315,32.88,123.27,123.19,32.88]
[1741675325717,8.1182,123.22,123.19,32.88]
[1741675326112,0.05408021,123.24,123.19,32.93716269]
[1741675326311,0.05408021,123.24,123.19,41.43650975]
[1741675326612,8.49934706,123.23,123.19,0.05716269]
[1741675326815,8.49934706,123.21,123.19,0.05716269]
[1741675327010,8.1191,123.2,123.19,6.269e-05]
[1741675328719,41.41102109,123.21,123.19,6.269e-05]
[1741675328720,0.05167403,123.21,123.19,6.269e-05]
[1741675328927,0.05167403,123.21,123.2,8.49934706]
[1741675330118,8.49934706,123.25,123.2,8.49934706]
[1741675330425,32.86,123.27,123.19,6.269e-05]
[1741675330623,13.27906801,123.26,123.19,6.269e-05]
[1741675330826,8.1191,123.21,123.18,32.86]
[1741675331123,32.86,123.24,123.18,32.86]
[1741675331319,0.06084678,123.21,123.18,32.91822929]
[1741675332727,0.06084678,123.21,123.18,0.05822929]
[1741675332928,8.17974678,123.21,123.18,0.05822929]
[1741675334128,8.1195,123.2,123.18,0.05822929]
[1741675334327,0.06084678,123.21,123.18,0.05822929]
[1741675334729,8.17944678,123.21,123.18,0.05822929]
[1741675335728,0.06084678,123.21,123.18,0.05822929]
[1741675335928,0.06084678,123.21,123.18,8.17852929]
[1741675336130,0.06084678,123.21,123.18,0.05822929]
[1741675336326,6.2833,123.28,123.18,13.3372973]
[1741675336633,8.1154,123.26,123.21,8.1179]
[1741675337023,8.1154,123.26,123.2,46.11906801]
[1741675337228,8.1151,123.27,123.2,46.11906801]
[1741675337431,8.1151,123.27,123.21,2.1804]
[1741675337734,0.05693683,123.25,123.24,8.1165]
[1741675338033,44.81175656,123.29,123.23,32.84]
[1741675338534,8.1153,123.26,123.23,32.84]
[1741675339030,8.16746424,123.26,123.23,32.89941839]
[1741675339930,0.05216424,123.26,123.23,32.89941839]
[1741675340633,0.05216424,123.26,123.23,46.1784864]
[1741675342128,0.05216424,123.26,123.23,54.2951864]
[1741675343235,0.05216424,123.26,123.23,46.1784864]
[1741675343435,0.05216424,123.26,123.23,48.2393864]
[1741675344230,0.05216424,123.26,123.24,8.1165]
[1741675345037,0.05216424,123.26,123.23,48.2393864]
[1741675345234,0.05216424,123.26,123.23,56.3563864]
[1741675345431,0.05216424,123.26,123.23,48.2393864]
[1741675345829,0.05216424,123.26,123.24,8.1159]
[1741675346330,0.05216424,123.26,123.23,48.2393864]
[1741675346534,0.05216424,123.26,123.23,56.3559864]
[1741675346736,0.05216424,123.26,123.23,34.96031839]
[1741675346934,0.05216424,123.26,123.23,2.12031839]
[1741675348132,8.16736424,123.26,123.23,2.12031839]
[1741675348334,0.05216424,123.26,123.23,2.12031839]
[1741675348934,8.1163,123.25,123.23,2.12031839]
[1741675349334,0.05216424,123.26,123.23,2.12031839]
[1741675350539,8.16756424,123.26,123.23,2.12031839]
[1741675351130,0.05216424,123.26,123.23,10.23731839]
[1741675351944,8.16736424,123.26,123.23,10.23731839]
[1741675352241,0.05216424,123.26,123.24,8.49187682]
[1741675353238,8.16736424,123.26,123.24,8.49187682]
[1741675353738,8.1158,123.25,123.24,8.49187682]
[1741675354640,8.16756424,123.26,123.24,8.49187682]
[1741675354845,0.05216424,123.26,123.24,8.49187682]
[1741675355234,0.05216424,123.26,123.25,40.9158]
[1741675355440,11.28670585,123.31,123.25,32.8]
[1741675355647,11.28670585,123.31,123.26,8.49187682]
[1741675355945,8.1129,123.3,123.26,16.60677682]
[1741675356648,8.158218,123.29,123.27,0.05363134]
[1741675357734,0.044618,123.29,123.27,0.05363134]
[1741675358341,8.157918,123.29,123.27,0.05363134]
[1741675358541,0.044618,123.29,123.27,0.05363134]
[1741675359647,0.044618,123.29,123.28,8.1138]
[1741675360040,0.044618,123.29,123.28,40.8938]
[1741675361145,8.1112,123.32,123.28,49.38567682]
[1741675366046,8.49187682,123.3,123.27,0.05363134]
[1741675366352,8.49187682,123.28,123.24,8.49187682]
[1741675366553,16.60567682,123.28,123.27,0.05729515]
[1741675368353,8.1138,123.28,123.27,0.05729515]
[1741675369356,8.1155,123.26,123.23,34.8209]
[1741675369556,32.76,123.3,123.23,34.8209]
[1741675370459,8.1153,123.26,123.25,0.05986487]
[1741675374161,8.1147,123.27,123.25,0.05986487]
[1741675374458,0.05729515,123.28,123.25,0.05986487]
[1741675374659,8.1146,123.27,123.25,0.05986487]
[1741675375058,0.05729515,123.28,123.25,0.05986487]
[1741675375258,8.1152,123.26,123.25,0.05986487]
[1741675375761,0.05729515,123.28,123.25,0.05986487]
[1741675375962,8.17139515,123.28,123.25,0.05986487]
[1741675376162,0.05729515,123.28,123.25,0.05986487]
[1741675377264,8.1152,123.26,123.25,0.05986487]
[1741675378962,8.1148,123.27,123.25,0.05986487]
[1741675379163,0.05729515,123.28,123.25,0.05986487]
[1741675380267,8.115,123.27,123.25,0.05986487]
[1741675380564,0.05729515,123.28,123.25,0.05986487]
[1741675381167,8.1152,123.26,123.25,0.05986487]
[1741675389070,16.61120359,123.27,123.25,0.05986487]
[1741675389272,8.49640359,123.27,123.25,0.05986487]
[1741675389768,8.1152,123.26,123.25,0.05986487]
[1741675390472,0.05729515,123.28,123.25,0.05986487]
[1741675391068,8.17119515,123.28,123.25,0.05986487]
[1741675393065,8.17119515,123.28,123.25,8.55626846]
[1741675395376,0.05729515,123.28,123.27,8.49640359]
[1741675395770,0.05729515,123.28,123.27,16.61090359]
[1741675396875,16.60780359,123.32,123.28,8.1134]
[1741675397875,16.60780359,123.32,123.29,0.05879435]
[1741675399076,8.112,123.31,123.29,0.05879435]
[1741675400380,8.49640359,123.32,123.29,0.05879435]
[1741675400982,8.49640359,123.3,123.29,0.05879435]
[1741675401282,8.49640359,123.3,123.24,41.19640359]
[1741675401477,8.49640359,123.28,123.24,32.7]
[1741675401774,8.1156,123.26,123.24,32.7]
[1741675402379,8.17427799,123.26,123.24,32.75566552]
[1741675403982,0.05867799,123.26,123.24,41.25206911]
[1741675404873,8.17427799,123.26,123.24,41.25206911]
[1741675406084,0.05867799,123.26,123.24,41.25206911]
[1741675406785,8.17427799,123.26,123.24,41.25206911]
[1741675407685,0.05867799,123.26,123.24,49.36846911]
[1741675408683,0.05867799,123.26,123.24,41.25206911]
[1741675409387,0.05867799,123.26,123.24,49.36816911]
[1741675410489,0.05867799,123.26,123.25,8.1158]
[1741675411089,0.05867799,123.26,123.24,49.36816911]
[1741675411791,0.05867799,123.26,123.25,8.1158]
[1741675415298,10.50580359,123.32,123.27,8.1143]
[1741675415994,10.50580359,123.32,123.26,16.61140359]
[1741675416199,10.50580359,123.32,123.26,8.49640359]
[1741675416401,10.50580359,123.32,123.28,0.05454789]
[1741675416700,8.1136,123.29,123.28,0.05454789]
[1741675419403,10.50580359,123.32,123.28,0.05454789]
[1741675419603,8.1128,123.3,123.28,0.05454789]
[1741675419803,8.49640359,123.32,123.28,0.05454789]
[1741675420498,8.49640359,123.32,123.28,8.16794789]
[1741675420707,267.66,123.33,123.28,16.66435148]
[1741675421006,267.66,123.33,123.28,8.55095148]
[1741675421303,8.1123,123.31,123.28,8.55095148]
[1741675422105,8.1123,123.31,123.28,16.66445148]
[1741675423005,8.1123,123.31,123.28,8.55095148]
[1741675423206,8.49640359,123.3,123.2,32.66]
[1741675423407,8.49640359,123.28,123.22,8.49640359]
[1741675423596,8.1156,123.26,123.22,8.49640359]
[1741675423800,32.66,123.29,123.24,8.49640359]
[1741675424298,8.1156,123.26,123.25,0.05333291]
[1741675424807,0.05466425,123.28,123.25,0.05333291]
[1741675425007,8.1149,123.27,123.25,0.05333291]
[1741675425219,0.05466425,123.28,123.25,0.05333291]
[1741675425507,8.1152,123.26,123.25,0.05333291]
[1741675427002,8.1147,123.27,123.25,0.05333291]
[1741675427403,0.05466425,123.28,123.25,0.05333291]
[1741675427603,8.1152,123.26,123.25,0.05333291]
[1741675436512,8.1146,123.27,123.25,0.05333291]
[1741675436717,0.05466425,123.28,123.25,0.05333291]
[1741675437115,8.1152,123.26,123.25,0.05333291]
[1741675437920,0.05466425,123.28,123.25,0.05333291]
[1741675438115,8.1148,123.27,123.25,0.05333291]
[1741675438817,0.05466425,123.28,123.25,0.05333291]
[1741675439822,0.05466425,123.28,123.25,8.16903291]
[1741675441019,8.16866425,123.28,123.25,0.05333291]
[1741675445323,0.05466425,123.28,123.25,8.16903291]
[1741675446116,8.16856425,123.28,123.25,8.16903291]
[1741675446528,8.16856425,123.28,123.25,0.05333291]
[1741675447522,0.05466425,123.28,123.25,8.16883291]
[1741675450219,0.05466425,123.28,123.26,8.115]
[1741675450723,0.05466425,123.28,123.25,0.05333291]
[1741675450924,0.05466425,123.28,123.25,8.16873291]
[1741675451126,0.05466425,123.28,123.25,0.05333291]
[1741675451631,0.05466425,123.28,123.27,8.1145]
[1741675452531,0.05466425,123.28,123.26,16.61140359]
[1741675452827,0.05466425,123.28,123.26,8.49640359]
[1741675453028,8.16876425,123.28,123.26,8.49640359]
[1741675453826,0.05466425,123.28,123.26,8.49640359]
[1741675455532,0.05466425,123.28,123.26,16.61120359]
[1741675456128,0.05466425,123.28,123.26,8.49640359]
[1741675457831,8.16876425,123.28,123.25,4.27353291]
[1741675458035,0.05466425,123.28,123.25,4.27353291]
[1741675458433,0.05466425,123.28,123.26,8.49640359]
[1741675463237,0.05466425,123.28,123.26,16.61120359]
[1741675463437,0.05466425,123.28,123.26,8.49640359]
[1741675464837,0.05466425,123.28,123.26,16.61150359]
[1741675465436,0.05466425,123.28,123.26,8.49640359]
[1741675469138,0.05466425,123.28,123.27,8.1145]
[1741675472448,8.1113,123.32,123.27,32.58]
[1741675472643,8.1113,123.32,123.28,8.49640359]
[1741675472946,8.1125,123.31,123.27,49.19050359]
[1741675473147,8.49640359,123.33,123.27,41.07640359]
[1741675473452,8.49640359,123.33,123.29,0.06039916]
[1741675473647,8.49640359,123.31,123.29,0.06039916]
[1741675474049,8.1125,123.3,123.29,9.916e-05]
[1741675474752,16.60890359,123.3,123.29,9.916e-05]
[1741675479347,0.05794759,123.31,123.29,9.916e-05]
[1741675480046,16.60890359,123.3,123.29,9.916e-05]
[1741675485553,8.1125,123.3,123.29,9.916e-05]
[1741675487266,0.05794759,123.31,123.29,9.916e-05]
[1741675487459,8.17004759,123.31,123.29,9.916e-05]
[1741675487856,0.05794759,123.31,123.29,9.916e-05]
[1741675488156,8.1125,123.3,123.29,9.916e-05]
[1741675489855,0.05794759,123.31,123.29,9.916e-05]
[1741675490057,8.17004759,123.31,123.29,9.916e-05]
[1741675490358,0.05794759,123.31,123.29,9.916e-05]
[1741675490557,8.1125,123.3,123.29,9.916e-05]
[1741675500768,0.05794759,123.31,123.29,9.916e-05]
[1741675500959,8.17004759,123.31,123.29,9.916e-05]
[1741675501168,0.05794759,123.31,123.29,9.916e-05]
[1741675501464,8.1125,123.3,123.29,9.916e-05]
[1741675505867,16.60890359,123.3,123.29,9.916e-05]
[1741675506960,8.1125,123.3,123.29,9.916e-05]
[1741675512465,0.05794759,123.31,123.29,9.916e-05]
[1741675512673,8.17004759,123.31,123.29,9.916e-05]
[1741675512869,0.05794759,123.31,123.29,9.916e-05]
[1741675513874,16.60890359,123.3,123.29,9.916e-05]
[1741675523472,8.1125,123.3,123.29,9.916e-05]
[1741675525573,8.17004759,123.31,123.29,9.916e-05]
[1741675526183,0.05794759,123.31,123.29,9.916e-05]
[1741675526385,8.1125,123.3,123.29,9.916e-05]
[1741675527381,8.17004759,123.31,123.29,9.916e-05]
[1741675528584,8.1125,123.3,123.29,9.916e-05]
[1741675548304,16.66645118,123.31,123.29,9.916e-05]
[1741675548606,8.17004759,123.31,123.29,9.916e-05]
[1741675549003,0.05794759,123.31,123.29,9.916e-05]
[1741675552208,8.1125,123.3,123.29,9.916e-05]
[1741675560309,0.05794759,123.31,123.29,9.916e-05]
[1741675562209,0.05794759,123.31,123.29,8.11309916]
[1741675562408,0.05794759,123.31,123.29,34.57939916]
[1741675564111,0.05794759,123.31,123.29,36.60519916]
[1741675566223,0.05794759,123.31,123.29,9.916e-05]
[1741675566515,8.1125,123.3,123.29,9.916e-05]
[1741675571021,8.1171,123.23,123.21,8.49640359]
[1741675571217,40.91640359,123.23,123.18,6.0711]
[1741675571411,8.121,123.18,123.14,8.49640359]
[1741675571618,8.49640359,123.19,123.14,8.49640359]
[1741675571820,8.49640359,123.21,123.14,8.49640359]
[1741675572016,8.1186,123.21,123.16,8.49640359]
[1741675572218,0.05528698,123.19,123.16,8.54830382]
[1741675572417,0.05528698,123.19,123.16,16.66940382]
[1741675572618,8.49640359,123.25,123.18,8.49640359]
[1741675572818,8.49640359,123.25,123.2,8.49640359]
[1741675573118,32.42,123.26,123.2,8.49640359]
[1741675573422,8.49640359,123.23,123.18,40.91640359]
[1741675573621,8.1184,123.21,123.18,40.91640359]
[1741675573818,8.49640359,123.25,123.19,0.05126441]
[1741675574423,8.49640359,123.25,123.2,8.49640359]
[1741675574723,32.42,123.26,123.2,8.49640359]
[1741675574919,8.1163,123.25,123.2,16.61500359]
[1741675575112,32.42,123.26,123.22,0.05546322]
[1741675575425,8.49640359,123.25,123.22,0.05546322]
[1741675575612,8.1165,123.24,123.22,0.05546322]
[1741675575817,8.49640359,123.25,123.22,0.05546322]
[1741675576017,8.49640359,123.23,123.22,6.322e-05]
[1741675576819,16.61350359,123.23,123.22,6.322e-05]
[1741675577227,49.03350359,123.23,123.22,6.322e-05]
[1741675577417,16.61350359,123.23,123.22,6.322e-05]
[1741675577623,0.0592289,123.24,123.22,6.322e-05]
[1741675578123,8.49640359,123.23,123.22,6.322e-05]
[1741675578325,40.5371,123.23,123.22,6.322e-05]
[1741675582627,40.5371,123.23,123.14,2.0287]
[1741675582831,13.28613593,123.22,123.14,2.0287]
[1741675583029,13.28613593,123.2,123.12,4.255]
[1741675583222,32.42,123.19,123.12,4.255]
[1741675583426,8.1222,123.16,123.12,4.255]
[1741675584134,0.05475619,123.15,123.13,0.0538547]
[1741675584728,8.1231,123.14,123.13,0.0538547]
[1741675585229,0.05475619,123.15,123.13,0.0538547]
[1741675586729,8.1231,123.14,123.13,0.0538547]
[1741675587230,8.17735619,123.15,123.13,0.0538547]
[1741675588135,0.05475619,123.15,123.13,0.0538547]
[1741675588430,8.1231,123.14,123.13,0.0538547]
[1741675589634,8.17735619,123.15,123.13,0.0538547]
[1741675590729,0.05475619,123.15,123.13,0.0538547]
[1741675591134,0.05475619,123.15,123.14,32.42]
[1741675592133,8.1206,123.18,123.14,40.5431]
[1741675592529,32.42,123.22,123.14,40.5431]
[1741675592728,32.42,123.22,123.14,32.42]
[1741675593232,8.1209,123.18,123.14,32.42]
[1741675593433,8.1209,123.18,123.17,0.05358233]
[1741675595237,8.1195,123.2,123.17,0.05358233]
[1741675596339,8.1186,123.21,123.17,0.05358233]
[1741675596631,32.42,123.22,123.17,0.05358233]
[1741675596838,8.1195,123.2,123.17,0.05358233]
[1741675597540,8.1188,123.21,123.17,40.57438233]
[1741675597940,13.28613593,123.26,123.17,32.45358233]
[1741675598140,8.1169,123.24,123.19,8.1192]
[1741675598440,8.1169,123.24,123.21,8.49631039]
[1741675600235,267.68,123.27,123.2,40.57186714]
[1741675600436,8.1161,123.25,123.21,8.1184]
[1741675600936,267.68,123.27,123.22,0.06160527]
[1741675601139,8.1143,123.28,123.23,40.5169]
[1741675601342,11.28670585,123.3,123.23,32.4]
[1741675601644,8.1149,123.27,123.24,0.05415392]
[1741675601938,17.44330865,123.31,123.24,0.05415392]
[1741675602140,8.1132,123.29,123.24,8.17055392]
[1741675602535,49.84330865,123.31,123.24,0.05415392]
[1741675602840,8.1143,123.28,123.24,0.05415392]
[1741675604438,49.84330865,123.31,123.24,0.05415392]
[1741675604640,8.1156,123.26,123.24,0.05415392]
[1741675605641,49.84330865,123.31,123.24,0.05415392]
[1741675605835,8.1147,123.27,123.24,0.05415392]
[1741675606437,49.84330865,123.31,123.24,0.05415392]
[1741675606638,8.1152,123.26,123.24,0.05415392]
[1741675609946,32.38,123.3,123.24,0.05415392]
[1741675611642,8.115,123.27,123.24,0.05415392]
[1741675612149,8.1141,123.28,123.24,0.05415392]
[1741675612852,8.1141,123.28,123.24,8.17055392]
[1741675613552,8.1134,123.29,123.25,8.1157]
[1741675614648,2.1154,123.32,123.24,0.05415392]
[1741675614852,8.114,123.28,123.23,38.4701]
[1741675615042,8.114,123.28,123.27,0.06175408]
[1741675615248,8.114,123.28,123.23,46.587]
[1741675615554,8.114,123.28,123.26,0.05397967]
[1741675617761,34.4754,123.32,123.26,0.05397967]
[1741675618460,8.1145,123.27,123.26,0.05397967]
[1741675620557,8.1145,123.27,123.26,7.967e-05]
[1741675620954,21.39100865,123.27,123.26,7.967e-05]
[1741675621161,8.1199,123.19,123.16,6.0843]
[1741675621563,32.36,123.21,123.16,6.0843]
[1741675621764,8.122,123.16,123.12,15.27810865]
[1741675622067,32.36,123.21,123.13,32.36]
[1741675622266,0.0572382,123.15,123.13,32.41699912]
[1741675622467,8.1209,123.18,123.13,32.36]
[1741675622666,0.05205881,123.15,123.13,32.41513788]
[1741675622867,8.1176,123.23,123.14,13.27650865]
[1741675623067,8.1176,123.23,123.16,13.27650865]
[1741675623267,267.72,123.25,123.17,42.4929]
[1741675623459,267.72,123.25,123.17,34.3724]
[1741675623667,267.72,123.25,123.2,8.1191]
[1741675623963,267.72,123.25,123.21,0.05706334]
[1741675626074,8.1176,123.23,123.21,0.05706334]
[1741675626868,8.1167,123.24,123.21,0.05706334]
[1741675627068,267.72,123.25,123.21,0.05706334]
[1741675627473,8.1178,123.22,123.21,0.05706334]
[1741675628369,267.72,123.25,123.21,0.05706334]
[1741675628566,8.1172,123.23,123.21,0.05706334]
[1741675628776,267.72,123.25,123.21,0.05706334]
[1741675628972,8.1177,123.23,123.21,0.05706334]
[1741675629879,275.836,123.25,123.21,0.05706334]
[1741675630482,267.72,123.25,123.21,0.05706334]
[1741675631277,8.117,123.24,123.21,0.05706334]
[1741675631579,267.72,123.25,123.21,0.05706334]
[1741675632085,8.1166,123.24,123.21,0.05706334]
[1741675632285,17.43680865,123.28,123.21,8.17536334]
[1741675632486,4.1603,123.28,123.21,0.05706334]
[1741675632677,8.1147,123.27,123.21,2.04616334]
[1741675632881,8.1147,123.27,123.22,8.1174]
[1741675633179,8.1152,123.26,123.23,32.34]
[1741675633586,8.1152,123.26,123.23,32.39802009]
[1741675634582,4.1603,123.28,123.23,32.39802009]
[1741675634782,8.1148,123.27,123.23,32.39802009]
[1741675634987,4.1603,123.28,123.23,32.39802009]
[1741675635394,8.1155,123.26,123.23,32.39802009]
[1741675635785,4.1603,123.28,123.23,32.39802009]
[1741675636486,8.1155,123.26,123.23,32.39802009]
[1741675636989,8.1147,123.27,123.23,32.39802009]
[1741675637189,4.1603,123.28,123.23,32.39802009]
[1741675639194,13.27650865,123.26,123.23,0.05802009]
[1741675639693,8.1165,123.24,123.23,0.05802009]
[1741675640795,13.27650865,123.26,123.17,6.2482]
[1741675640796,8.1198,123.19,123.17,6.2482]
[1741675640995,8.1198,123.19,123.17,38.5882]
[1741675641799,8.1198,123.19,123.17,32.34]
[1741675641993,8.17250661,123.19,123.17,32.39274413]
[1741675642193,8.1204,123.18,123.17,0.05274413]
[1741675642388,0.05270661,123.19,123.13,32.34]
[1741675642594,13.27650865,123.2,123.13,32.34]
[1741675643088,8.1223,123.16,123.13,32.34]
[1741675643494,8.18288628,123.16,123.13,32.39194421]
[1741675643798,8.1225,123.15,123.13,32.39194421]
[1741675643989,0.06058628,123.16,123.13,32.39194421]
[1741675644189,0.06058628,123.16,123.13,0.05194421]
[1741675644190,8.1231,123.14,123.13,0.05194421]
[1741675644697,8.18248628,123.16,123.13,0.05194421]
[1741675645089,0.06058628,123.16,123.13,0.05194421]
[1741675645593,8.1231,123.14,123.13,0.05194421]
[1741675646099,8.1245,123.12,123.08,32.34]
[1741675646498,8.1245,123.12,123.06,21.40470865]
[1741675646700,32.34,123.15,123.06,13.27650865]
[1741675646997,13.27650865,123.14,123.05,6.2109]
[1741675647302,0.05143471,123.12,123.09,0.05259987]
[1741675649796,0.05143471,123.12,123.1,32.34]
[1741675650195,0.05143471,123.12,123.1,34.3098]
[1741675650597,0.05143471,123.12,123.11,8.125]
[1741675650796,0.05143471,123.12,123.1,34.3098]
[1741675651200,0.05143471,123.12,123.1,42.4351]
[1741675651397,0.05143471,123.12,123.1,34.3098]
[1741675651604,0.05143471,123.12,123.1,32.34]
[1741675652296,0.05143471,123.12,123.09,0.05259987]
[1741675652800,8.17623471,123.12,123.09,0.05259987]
[1741675653002,0.05143471,123.12,123.09,0.05259987]
[1741675654999,0.05143471,123.12,123.09,8.17849987]
[1741675655200,0.05143471,123.12,123.09,0.05259987]
[1741675655702,0.05143471,123.12,123.11,8.125]
[1741675655902,0.05143471,123.12,123.11,40.465]
[1741675656402,0.05143471,123.12,123.09,0.05259987]
[1741675659011,8.17623471,123.12,123.09,0.05259987]
[1741675660010,0.05143471,123.12,123.09,0.05259987]
[1741675661007,0.05143471,123.12,123.09,8.17849987]
[1741675661405,0.05143471,123.12,123.09,0.05259987]
[1741675661708,0.05143471,123.12,123.1,8.1253]
[1741675665414,8.17593471,123.12,123.09,0.05259987]
[1741675665710,0.05143471,123.12,123.09,0.05259987]
[1741675665913,0.05143471,123.12,123.09,8.17879987]
[1741675666710,0.05143471,123.12,123.1,8.1257]
[1741675667318,0.05143471,123.12,123.09,8.17879987]
[1741675669615,0.05143471,123.12,123.09,0.05259987]
[1741675669817,0.05143471,123.12,123.1,8.1257]
[1741675671508,0.05143471,123.12,123.09,8.17869987]
[1741675672617,8.17583471,123.12,123.09,8.17869987]
[1741675673515,0.05143471,123.12,123.09,8.17869987]
[1741675673720,0.05143471,123.12,123.1,8.1256]
[1741675675610,0.05143471,123.12,123.09,8.17869987]
[1741675675811,0.05143471,123.12,123.09,0.05259987]
[1741675676615,13.32794336,123.12,123.01,13.27650865]
[1741675676819,13.27650865,123.12,123.02,36.5177]
[1741675677006,17.37630865,123.12,123.02,36.5177]
[1741675677318,17.37630865,123.12,123.02,44.6486]
[1741675677813,0.05283694,123.08,123.06,0.05116209]
[1741675679316,2.0117,123.14,123.06,2.02966209]
[1741675679519,2.0117,123.14,123.06,1.9785]
[1741675679922,8.1242,123.13,123.07,8.1271]
[1741675680119,8.1242,123.13,123.08,32.32]
[1741675680417,11.34063008,123.12,123.09,0.05901211]
[1741675680612,11.34063008,123.12,123.09,8.18491211]
[1741675680820,11.34063008,123.12,123.09,0.05901211]
[1741675682410,11.34063008,123.12,123.09,8.18481211]
[1741675682613,0.05392423,123.12,123.09,0.05901211]
[1741675684616,8.1251,123.11,123.09,0.05901211]
[1741675684813,0.05392423,123.12,123.09,0.05901211]
[1741675685716,0.05392423,123.12,123.09,2.19761211]
[1741675688017,0.05392423,123.12,123.09,10.32361211]
[1741675690325,0.05392423,123.12,123.09,0.05901211]
[1741675691919,8.1257,123.1,123.09,0.05901211]
[1741675692120,13.6820811,123.1,123.03,2.0502]
[1741675692920,8.1281,123.07,123.03,2.0502]
[1741675693122,8.1281,123.07,123.03,10.1804]
[1741675693326,0.0589617,123.06,123.04,0.05756692]
[1741675694925,0.0589617,123.06,123.05,8.129]
[1741675695327,32.3,123.11,123.04,0.05756692]
[1741675695522,8.1244,123.12,123.07,8.1273]
[1741675695729,79.24925656,123.13,123.05,13.6820811]
[1741675695931,8.1261,123.1,123.05,21.8108811]
[1741675696127,8.1261,123.1,123.05,8.1288]
[1741675696431,0.05336224,123.09,123.06,0.06165679]
[1741675698530,0.05336224,123.09,123.06,8.18995679]
[1741675699128,0.05336224,123.09,123.06,0.06165679]
[1741675700433,0.05336224,123.09,123.06,8.18965679]
[1741675700733,0.05336224,123.09,123.06,0.06165679]
[1741675700933,0.05336224,123.09,123.06,8.18995679]
[1741675701233,0.05336224,123.09,123.06,0.06165679]
[1741675701731,8.18016224,123.09,123.06,0.06165679]
[1741675702427,0.05336224,123.09,123.06,0.06165679]
[1741675703433,0.05336224,123.09,123.07,8.1277]
[1741675703633,0.05336224,123.09,123.06,32.36165679]
[1741675704132,0.05336224,123.09,123.08,8.127]
[1741675705026,0.05336224,123.09,123.06,34.37525679]
[1741675705635,0.05336224,123.09,123.07,8.1277]
[1741675705835,0.05336224,123.09,123.06,34.37525679]
[1741675706337,0.05336224,123.09,123.07,8.1273]
[1741675708727,0.05336224,123.09,123.08,8.127]
[1741675709632,8.124,123.13,123.06,34.37525679]
[1741675709833,8.124,123.13,123.09,8.1261]
[1741675710438,8.1232,123.14,123.1,8.1252]
[1741675710633,8.1232,123.14,123.08,2.0511]
[1741675710840,0.05657959,123.13,123.11,0.05789529]
[1741675711936,0.05657959,123.13,123.11,8.18289529]
[1741675713735,0.05657959,123.13,123.11,0.05789529]